Workbook

Sheet Omloppskalkyl
A1: Ekologiska jordgubbar på bar mark | D1: Beräkning per ha | F1: Företaget har 30 ha odling varav 10 ha jordgubbar
A2: 2020 års prisnivå
A3: Omloppskalkyl
A6: Kalkylränta | B6: =Prislista!B17 -> 0.02 | D6: Självkostnadspris | F6: 23.41225171 | G6: kr/liter
C8: År 0 | D8: År 1 | E8: År 2
A9: Skörd (kartonger á 500 g) | B9: st | C9: =Etableringsår!C7 -> 0 | D9: ='Skördeår 1'!C7 -> 14000 | E9: ='Skördeår 2'!C7 -> 14000
A10: Bärförsäljning | B10: kr | C10: =C9*F6 -> 0 | D10: =D9*F6 -> 327771.5239 | E10: =E9*F6 -> 327771.5239
A11: Miljöersättning och gårdsstöd | B11: kr | C11: =Etableringsår!E8+Etableringsår!E9 -> 9500 | D11: ='Skördeår 1'!E8+'Skördeår 1'!E9 -> 9500 | E11: ='Skördeår 2'!E8+'Skördeår 2'!E9 -> 9500
A12: Intäkter | B12: kr | C12: =SUM(C10:C11) -> 9500 | D12: =SUM(D10:D11) -> 337271.5239 | E12: =SUM(E10:E11) -> 337271.5239
A14: Skördebundna kostnader | B14: kr | D14: ='Skördeår 1'!E34 -> 117598.5762 | E14: ='Skördeår 2'!E34 -> 111043.1457
A15: Arealbundna kostnader | B15: kr | C15: =Etableringsår!E25 -> 164664.0527 | D15: ='Skördeår 1'!E24 -> 34404.95272 | E15: ='Skördeår 2'!E24 -> 29674.19272
A16: S:a särkostnader | B16: kr | C16: =C14+C15 -> 164664.0527 | D16: =D14+D15 -> 152003.5289 | E16: =E14+E15 -> 140717.3384
A18: Administration | B18: kr | C18: =Etableringsår!E47 -> 20000 | D18: ='Skördeår 1'!E45 -> 40000 | E18: ='Skördeår 2'!E45 -> 40000
A19: Fasta maskinkostnader | B19: kr | C19: =Etableringsår!E43+Etableringsår!E44 -> 20772.60287 | D19: ='Skördeår 1'!E41+'Skördeår 1'!E42 -> 20772.60287 | E19: ='Skördeår 2'!E41+'Skördeår 2'!E42 -> 20772.60287
A20: Byggnader | B20: kr | C20: =Etableringsår!E45 -> 13420.52874 | D20: ='Skördeår 1'!E43 -> 13420.52874 | E20: ='Skördeår 2'!E43 -> 13420.52874
A21: Mark/Certifiering | B21: kr | C21: =Etableringsår!E46+Etableringsår!E48 -> 5500 | D21: ='Skördeår 1'!E44+'Skördeår 1'!E46 -> 6000 | E21: ='Skördeår 2'!E44+'Skördeår 2'!E46 -> 6000
A22: Summa kostnader | B22: kr | C22: =SUM(C18:C21)+C16 -> 224357.1843 | D22: =SUM(D18:D21)+D16 -> 232196.6605 | E22: =SUM(E18:E21)+E16 -> 220910.47
A23: Överskott | B23: kr | C23: =C12-C22 -> -214857.1843 | D23: =D12-D22 -> 105074.8634 | E23: =E12-E22 -> 116361.0539
A24: Nuvärdefaktor | C24: =(1+$B$6)^0 -> 1 | D24: =(1+$B$6)^-1 -> 0.9803921569 | E24: =(1+$B$6)^-2 -> 0.9611687812
A25: Nuvärde | B25: kr | C25: =+C23*C24 -> -214857.1843 | D25: =+D23*D24 -> 103014.572 | E25: =+E23*E24 -> 111842.6124
A26: Summa nuvärde | B26: kr | C26: =+C25 -> -214857.1843 | D26: =+C26+D25 -> -111842.6124 | E26: =+D26+E25 -> 0
A28: Gårdsareal jordbruksmark | B28: 30 | C28: ha
A29: Areal jordgubbar | B29: 10 | C29: ha
A30: Skörd | B30: 14000 | C30: l/ha | E30: 14 000 l normalt
A31: Känslighetsanalys för hur skörden påverkar självkostnadspriset
A54: Skörd (l/ha) | B54: 6000 | C54: 10000 | D54: 14000 | E54: 18000 | F54: 22000
A55: Självkostnadspris | B55: 45.51653644 | C55: 30.04353713 | D55: 23.41225171 | E55: 19.72820426 | F55: 17.38381042

Sheet Etableringsår
A1: =Omloppskalkyl!A1 -> Ekologiska jordgubbar på bar mark | E1: etableringsåret
A3: Areal enhet | C3: 1 | D3: ha | E3: 33400 | G3: plantor
A4: Skördenivå brutto | C4: 0 | D4: kg/ha
A6: Intäkter | B6: Enhet | C6: Kvantitet | D6: á-pris | E6: Summa
A7: Jordgubbar i 500 g kartong | B7: st | C7: =C4*2 -> 0 | E7: =C7*D7 -> 0 | G7: Självkostnadspris
A8: Miljöersättning | E8: =Prislista!B7 -> 7500
A9: Gårdsstöd | E9: =Prislista!B8 -> 2000
A10: Summa Intäkter | E10: =SUM(E7:E9) -> 9500
A12: Särkostnader
A13: Arbete odling kvalificerat | B13: tim | C13: =SUM(C58:C65) -> 51 | D13: =Prislista!B11 -> 283 | E13: =C13*D13 -> 14433
A14: Arbete odling okvalificerat | B14: tim | C14: =SUM(B58:B65) -> 235 | D14: =Prislista!B12 -> 186 | E14: 43710
A15: Plantor | B15: st | C15: =E3 -> 33400 | D15: =Prislista!B27 -> 2.15 | E15: 71810 | G15: Radavstånd: 1,2 m. Plantavstånd: 25 cm
A16: Nötgödsel | B16: kg | C16: 30000 | D16: =Prislista!B39 -> 0.2 | E16: 6000 | G16: inkl. spridning
A17: Växtskydd | C17: 1 | D17: =G77 -> 3470 | E17: 3470
A18: Halm | B18: kg | C18: 0 | D18: =Prislista!B31 -> 1 | E18: 0
A19: Drivm. traktor arealbundet | B19: tim | C19: =SUM(D58:D65) -> 31 | D19: =Prislista!B23 -> 88 | E19: 2728
A20: Bevattning (elkostnad) | B20: kWh | C20: 650 | D20: =Prislista!B24 -> 0.96 | E20: 624
A21: Fiberduk, 19 g/m2 | B21: m² | C21: 10000 | D21: =Prislista!B30 -> 1.1 | E21: 11000 | G21: väven läggs ut under hösten
A22: Trampnät | C22: 1 | D22: =Prislista!B56 -> 7160.345801 | E22: 7160.345801 | G22: Avskrivs på 5 år
A23: Analyser | B23: st | C23: 1 | D23: =Prislista!B32 -> 500 | E23: 500
A24: Ränta rörelsekapital | C24: =SUM(E13:E23) -> 161435.3458 | D24: =Prislista!B20 -> 0.02 | E24: 3228.706916
A25: Summa arealbundna kostnader | E25: =SUM(E13:E24) -> 164664.0527
A28: Arbete skörd kvalificerat | B28: tim | C28: =SUM(C66:C67) -> 0 | D28: =Prislista!B11 -> 283 | E28: =C28*D28 -> 0
A29: Plockning | B29: l | C29: =C7 -> 0 | D29: =Prislista!B13 -> 4 | E29: =C29*D29 -> 0
A30: Plockning, sociala avgifter | B30: =Prislista!B14 -> 0.365 | C30: =C29 -> 0 | D30: =D29*B30 -> 1.46 | E30: =C30*D30 -> 0
A31: Drivm. traktor skördebundet | B31: tim | C31: =SUM(D66:D67) -> 0 | D31: =Prislista!B23 -> 88 | E31: =C31*D31 -> 0
A32: Jordgubbskartonger | B32: st | C32: =C7 -> 0 | D32: =Prislista!B33 -> 0.5 | E32: =C32*D32 -> 0
A33: Engångslådor (för 15 kartonger) | B33: st | C33: =C7/15 -> 0 | D33: =Prislista!B34 -> 9 | E33: 0
A34: Transport | B34: st | C34: =C7 -> 0 | D34: =Prislista!B35 -> 0 | E34: 0 | G34: Säljs fritt odlingen
A35: Försäljningskostnad | B35: % | C35: =E7 -> 0 | D35: =Prislista!B36 -> 0.03 | E35: 0
A36: Summa skördebundna kostnader | E36: =SUM(E28:E35) -> 0
A38: Summa särkostnader | E38: =E25+E36 -> 164664.0527
A40: Täckningsbidrag | E40: =E10-E38 -> -155164.0527
A42: Samkostnader
A43: Maskiner | C43: 1 | D43: =Maskiner!O26 -> 12616.38466 | E43: =C43*D43 -> 12616.38466
A44: Bevattningsmaskin | C44: 1 | D44: =Bevattningsutrustning!C21 -> 8156.218218 | E44: 8156.218218
A45: Byggnader | C45: 1 | D45: =Byggnader!G24 -> 13420.52874 | E45: 13420.52874
A46: Arrende/jorddränta | C46: 1 | D46: =Prislista!B4 -> 5000 | E46: 5000
A47: Administration/företagsledning | C47: 0.1 | D47: 200000 | E47: 20000
A48: Certifieringsavgifter | C48: 0.1 | D48: =Prislista!B5 -> 5000 | E48: 500
A49: Summa samkostnader | E49: =SUM(E43:E48) -> 59693.13161
A51: Resultat | E51: =E40-E49 -> -214857.1843
A54: Arbete
B56: Okvali-ficerat arbete | C56: Kvalificerat arbete | D56: Traktor
A57: Moment | B57: tim/ha | C57: tim/ha | D57: tim/ha | G57: Kommentar
A58: Markberedning | C58: 3 | D58: 3
A59: Plantering | B59: 24 | C59: 8 | D59: 8 | G59: 1000 pl/tim, 3 radig, 4 man, 32 tim
A60: Växtskydd | B60: 2 | C60: 2 | D60: 2 | G60: 4 ggr sprutning + kvalster
A61: Bevattning | C61: 4 | D61: 4
A62: Radhackning/Radfräsning | C62: 8 | D62: 8 | G62: 1 gång/vecka enl Winter, jo16_25
A63: Handrensning | B63: 200 | C63: 20
A64: Halmning | B64: 3 | C64: 3 | D64: 3 | G64: maskin, 2 pers
A65: Vävtäckning | B65: 6 | C65: 3 | D65: 3
A66: Skörd, arbetsledning
A67: Skörd, intern transport
A68: Summa | B68: =SUM(B58:B67) -> 235 | C68: =SUM(C58:C67) -> 51 | D68: =SUM(D58:D67) -> 31
A71: Specifikation av växtskyddsmedel
B72: enhet | C72: mängd | D72: ggr | E72: à-pris | G72: Summa
A73: Kumulus DF | B73: kg | C73: 4 | D73: 2 | E73: =Prislista!B46 -> 160 | G73: =C73*D73*E73 -> 1280
A74: Serenade ASO (Bacillus subtilis) | B74: l | C74: 5 | D74: 2 | E74: =Prislista!B47 -> 154 | G74: =C74*D74*E74 -> 1540
A75: Sluxx HP mot sniglar | B75: kg | E75: =Prislista!B48 -> 69 | G75: 0
A76: Rovkvalster Neoseiulus cucmeris | B76: 300000 st | C76: 2 | D76: 1 | E76: =Prislista!B49 -> 325 | G76: =C76*D76*E76 -> 650
E77: Summa: | G77: =SUM(G73:G76) -> 3470

Sheet Skördeår 1
A1: =Omloppskalkyl!A1 -> Ekologiska jordgubbar på bar mark | E1: skördeår 1
A3: Areal enhet | C3: 1 | D3: ha | E3: 33 400 plantor
A4: Skördenivå brutto | C4: =Omloppskalkyl!B30/2 -> 7000 | D4: kg/ha
A6: Intäkter | B6: Enhet | C6: Kvantitet | D6: á-pris | E6: Summa
A7: Jordgubbar i 500 g kartong | B7: st | C7: =C4*2 -> 14000 | D7: =Omloppskalkyl!F6 -> 23.41225171 | E7: =C7*D7 -> 327771.5239 | G7: Självkostnadspris
A8: Miljöersättning eko | E8: =Prislista!B7 -> 7500
A9: Gårdsstöd | E9: =Prislista!B8 -> 2000
A10: Summa Intäkter | E10: =SUM(E7:E9) -> 337271.5239
A12: Särkostnader
A13: Arbete odling kvalificerat | B13: tim | C13: =SUM(C57:C64) -> 41 | D13: =Prislista!B11 -> 283 | E13: =C13*D13 -> 11603
A14: Arbete odling okvalificerat | B14: tim | C14: =SUM(B57:B64) -> 115 | D14: =Prislista!B12 -> 186
A15: Pelleterad ekogödsel | B15: kg | C15: 600 | D15: =Prislista!B40 -> 4.7 | E15: 2820
A16: Växtskydd | C16: 1 | D16: =G76 -> 4295 | E16: 4295
A17: Halm | B17: kg | C17: 4000 | D17: =Prislista!B31 -> 1 | E17: 4000
A18: Drivm. traktor arealbundet | B18: tim | C18: =SUM(D57:D64) -> 31 | D18: =Prislista!B23 -> 88 | E18: 2728
A19: Bevattning (elkostnad) | B19: kWh | C19: 650 | D19: =Prislista!B24 -> 0.96 | E19: 624
A20: Fiberduk, 19 g/m² | B20: m² | C20: 0 | D20: =Prislista!B30 -> 1.1 | E20: 0 | G20: väven håller i två år
A21: Trampnät | C21: 1 | D21: =Prislista!B56 -> 7160.345801 | E21: 7160.345801 | G21: Avskrivs på 5 år
A22: Analyser | B22: st | C22: 1 | D22: =Prislista!B32 -> 500 | E22: 500
A23: Ränta rörelsekapital | C23: =SUM(E13:E22) -> 33730.3458 | D23: =Prislista!B20 -> 0.02 | E23: 674.606916
A24: Summa arealbundna kostnader | E24: =SUM(E13:E23) -> 34404.95272
A26: Arbete skörd kvalificerat | B26: tim | C26: =SUM(C65:C66) -> 30 | D26: =Prislista!B11 -> 283 | E26: =C26*D26 -> 8490
A27: Plockning | B27: l | C27: =C7 -> 14000 | D27: =Prislista!B13 -> 4 | E27: =C27*D27 -> 56000
A28: Plockning, sociala avgifter | B28: =Prislista!B14 -> 0.365 | C28: =C27 -> 14000 | D28: =D27*B28 -> 1.46 | E28: =C28*D28 -> 20440
A29: Drivm. traktor skördebundet | B29: tim | C29: =SUM(D65:D66) -> 10 | D29: =Prislista!B23 -> 88 | E29: =C29*D29 -> 880
A30: Jordgubbskartonger | B30: st | C30: =C7 -> 14000 | D30: =Prislista!B33 -> 0.5 | E30: =C30*D30 -> 7000
A31: Returlådor | B31: st | C31: =C7/15 -> 933.3333333 | D31: =Prislista!B34 -> 9 | E31: =D31*C31 -> 8400
A32: Transport | B32: st | C32: =C7 -> 14000 | D32: =Prislista!B35 -> 0 | E32: =D32*C32 -> 0
A33: Försäljningskostnad | B33: % | C33: =E7 -> 327771.5239 | D33: 0.05 | E33: =D33*C33 -> 16388.5762
A34: Summa skördebundna kostnader | E34: =SUM(E26:E33) -> 117598.5762
A36: Summa särkostnader | E36: =E24+E34 -> 152003.5289
A38: Täckningsbidrag | E38: =E10-E36 -> 185267.995
A40: Samkostnader
A41: Maskiner | C41: 1 | D41: =Maskiner!O26 -> 12616.38466 | E41: =C41*D41 -> 12616.38466
A42: Bevattningsmaskin | C42: 1 | D42: =Bevattningsutrustning!C21 -> 8156.218218 | E42: 8156.218218
A43: Byggnader | C43: 1 | D43: =Byggnader!G24 -> 13420.52874 | E43: 13420.52874
A44: Arrende/jorddränta | C44: 1 | D44: =Prislista!B4 -> 5000 | E44: 5000
A45: Administration/företagsledning | C45: 0.2 | D45: =Prislista!B6 -> 200000 | E45: 40000
A46: Certifieringsavgifter | C46: 0.2 | D46: =Prislista!B5 -> 5000 | E46: 1000
A47: Avskrivning etablering | C47: 1 | D47: =Omloppskalkyl!D23 -> 105074.8634 | E47: 105074.8634
A48: Summa samkostnader | E48: =SUM(E40:E47) -> 185267.995
A50: Resultat | E50: =E38-E48 -> 0
A53: Arbete
B55: Okvali-ficerat arbete | C55: Kvalificerat arbete | D55: Traktor
A56: Moment | B56: tim/ha | C56: tim/ha | D56: tim/ha | G56: Kommentar
A57: Gödsling | C57: 4 | D57: 4
A58: Växtskydd | B58: 4 | C58: 3 | D58: 3 | G58: 4 ggr sprutning + Sluxx + 2 ggr kvalster
A59: Bevattning | C59: 5 | D59: 5
A60: Radhackning/Radfräsning | C60: 8 | D60: 8
A61: Handrensning | B61: 100 | C61: 10
A62: Halmning | B62: 3 | C62: 3 | D62: 3 | G62: maskin, 2 pers
A63: Blasthuggning | C63: 2 | D63: 2
A64: Vävtäckning | B64: 8 | C64: 6 | D64: 6
A65: Skörd, arbetsledning | C65: 20
A66: Skörd, intern transport | C66: 10 | D66: 10
A67: Summa | B67: =SUM(B57:B66) -> 115 | C67: =SUM(C57:C66) -> 71 | D67: =SUM(D57:D66) -> 41
A70: Specifikation av växtskyddsmedel
B71: enhet | C71: mängd | D71: ggr | E71: à-pris | G71: Summa
A72: Kumulus DF | B72: kg | C72: 4 | D72: 2 | E72: =Prislista!B46 -> 160 | G72: =C72*D72*E72 -> 1280
A73: Serenade ASO (Bacillus subtilis) | B73: l | C73: 4 | D73: 2 | E73: =Prislista!B47 -> 154 | G73: =C73*D73*E73 -> 1232
A74: Sluxx HP mot sniglar | B74: kg | C74: 7 | D74: 1 | E74: =Prislista!B48 -> 69 | G74: =C74*D74*E74 -> 483
A75: Rovkvalster Neoseiulus cucmeris | B75: 300000 st | C75: 2 | D75: 2 | E75: =Prislista!B49 -> 325 | G75: =C75*D75*E75 -> 1300
E76: Summa: | G76: =SUM(G72:G75) -> 4295

Sheet Skördeår 2
A1: =Omloppskalkyl!A1 -> Ekologiska jordgubbar på bar mark | E1: skördeår 2
A3: Areal enhet | C3: 1 | D3: ha | E3: ='Skördeår 1'!E3 -> 33 400 plantor
A4: Skördenivå brutto | C4: =Omloppskalkyl!B30/2 -> 7000 | D4: kg/ha
A6: Intäkter | B6: Enhet | C6: Kvantitet | D6: á-pris | E6: Summa
A7: Jordgubbar i 500 g kartong | B7: st | C7: =C4*2 -> 14000 | D7: =Omloppskalkyl!F6 -> 23.41225171 | E7: =C7*D7 -> 327771.5239 | G7: Självkostnadspris
A8: Miljöersättning | E8: =Prislista!B7 -> 7500
A9: Gårdsstöd | E9: =Prislista!B8 -> 2000
A10: Summa Intäkter | E10: =SUM(E7:E9) -> 337271.5239
A12: Särkostnader
A13: Arbete odling kvalificerat | B13: tim | C13: =SUM(C57:C64) -> 33 | D13: =Prislista!B11 -> 283 | E13: =C13*D13 -> 9339
A14: Arbete odling okvalificerat | B14: tim | C14: =SUM(B57:B64) -> 77 | D14: =Prislista!B12 -> 186
A15: Pelleterad ekogödsel | B15: kg | C15: 600 | D15: =Prislista!B40 -> 4.7 | E15: 2820
A16: Växtskydd | C16: 1 | D16: =G76 -> 3005 | E16: 3005
A17: Halm | B17: kg | C17: 4000 | D17: =Prislista!B31 -> 1 | E17: 4000
A18: Drivm. traktor arealbundet | B18: tim | C18: =SUM(D57:D64) -> 26 | D18: =Prislista!B23 -> 88 | E18: 2288
A19: Bevattning (elkostnad) | B19: kWh | C19: 500 | D19: =Prislista!B24 -> 0.96 | E19: 480
A20: Fiberduk, 19 g/m² | B20: m² | C20: 0 | D20: =Prislista!B30 -> 1.1 | E20: 0 | G20: väven håller i två år
A21: Trampnät | C21: 1 | D21: =Prislista!B56 -> 7160.345801 | E21: 7160.345801 | G21: Avskrivs på 5 år
A22: Analyser | B22: st | C22: 0 | D22: =Prislista!B32 -> 500 | E22: 0
A23: Ränta rörelsekapital | C23: =SUM(E13:E22) -> 29092.3458 | D23: =Prislista!B20 -> 0.02 | E23: 581.846916
A24: Summa arealbundna kostnader | E24: =SUM(E13:E23) -> 29674.19272
A26: Arbete skörd kvalificerat | B26: tim | C26: =SUM(C65:C66) -> 30 | D26: =Prislista!B11 -> 283 | E26: =C26*D26 -> 8490
A27: Plockning | B27: l | C27: =C7 -> 14000 | D27: =Prislista!B13 -> 4 | E27: =C27*D27 -> 56000
A28: Plockning, sociala avgifter | B28: =Prislista!B14 -> 0.365 | C28: =C27 -> 14000 | D28: =D27*B28 -> 1.46 | E28: =C28*D28 -> 20440
A29: Drivm. traktor skördebundet | B29: tim | C29: =SUM(D65:D66) -> 10 | D29: =Prislista!B23 -> 88 | E29: =C29*D29 -> 880
A30: Jordgubbskartonger | B30: st | C30: =C7 -> 14000 | D30: =Prislista!B33 -> 0.5 | E30: =C30*D30 -> 7000
A31: Returlådor | B31: st | C31: =C7/15 -> 933.3333333 | D31: =Prislista!B34 -> 9 | E31: =D31*C31 -> 8400
A32: Transport | B32: st | C32: =C7 -> 14000 | D32: =Prislista!B35 -> 0 | E32: =D32*C32 -> 0 | G32: Säljs fritt odlingen
A33: Försäljningskostnad | B33: % | C33: =E7 -> 327771.5239 | D33: =Prislista!B36 -> 0.03 | E33: =D33*C33 -> 9833.145718
A34: Summa skördebundna kostnader | E34: =SUM(E26:E33) -> 111043.1457
A36: Summa särkostnader | E36: =E24+E34 -> 140717.3384
A38: Täckningsbidrag | E38: =E10-E36 -> 196554.1855
A40: Samkostnader
A41: Maskiner | C41: 1 | D41: =Maskiner!O26 -> 12616.38466 | E41: =C41*D41 -> 12616.38466
A42: Bevattningsmaskin | C42: 1 | D42: =Bevattningsutrustning!C21 -> 8156.218218 | E42: 8156.218218
A43: Byggnader | C43: 1 | D43: =Byggnader!G24 -> 13420.52874 | E43: 13420.52874
A44: Arrende/jorddränta | C44: 1 | D44: =Prislista!B4 -> 5000 | E44: 5000
A45: Administration/företagsledning | C45: 0.2 | D45: =Prislista!B6 -> 200000 | E45: 40000
A46: Certifieringsavgifter | C46: 0.2 | D46: =Prislista!B5 -> 5000 | E46: 1000
A47: Avskrivning etablering | C47: 1 | D47: =Omloppskalkyl!E23 -> 116361.0539 | E47: 116361.0539
A48: Summa samkostnader | E48: =SUM(E40:E47) -> 196554.1855
A50: Resultat | E50: =E38-E48 -> 0
A53: Arbete
B55: Okvali-ficerat arbete | C55: Kvalificerat arbete | D55: Traktor
A56: Moment | B56: tim/ha | C56: tim/ha | D56: tim/ha | G56: Kommentar
A57: Gödsling | C57: 4 | D57: 4
A58: Växtskydd | B58: 2 | C58: 3 | D58: 3 | G58: 3 ggr sprutning + Sluxx + kvalster
A59: Bevattning | C59: 5 | D59: 5
A60: Radhackning/Radfräsning | C60: 6 | D60: 6
A61: Handrensning | B61: 70 | C61: 7
A62: Vävborttagning | B62: 2 | C62: 3 | D62: 3
A63: Halmning | B63: 3 | C63: 3 | D63: 3 | G63: maskin, 2 pers
A64: Röjning | C64: 2 | D64: 2
A65: Skörd, arbetsledning | C65: 20
A66: Skörd, intern transport | C66: 10 | D66: 10
A67: Summa | B67: =SUM(B57:B66) -> 77 | C67: =SUM(C57:C66) -> 63 | D67: =SUM(D57:D66) -> 36
A70: Specifikation av växtskyddsmedel
B71: enhet | C71: mängd | D71: ggr | E71: à-pris | G71: Summa
A72: Kumulus DF | B72: kg | C72: 4 | D72: 1 | E72: =Prislista!B46 -> 160 | G72: =C72*D72*E72 -> 640
A73: Serenade ASO (Bacillus subtilis) | B73: l | C73: 4 | D73: 2 | E73: =Prislista!B47 -> 154 | G73: =C73*D73*E73 -> 1232
A74: Sluxx HP mot sniglar | B74: kg | C74: 7 | D74: 1 | E74: =Prislista!B48 -> 69 | G74: =C74*D74*E74 -> 483
A75: Rovkvalster Neoseiulus cucmeris | B75: 300000 st | C75: 2 | D75: 1 | E75: =Prislista!B49 -> 325 | G75: =C75*D75*E75 -> 650
E76: Summa: | G76: =SUM(G72:G75) -> 3005

Sheet Maskiner
A1: Maskinkostnader frilandsodling på barmark
C3: Traktor | D3: Traktor | E3: Plog+harvar+gödsel-spridare m.f. basmaskiner | F3: Planterings-maskin | G3: Spruta för rader | H3: Radfräs | I3: Vävläggare | J3: Halmnings-maskin | K3: Blast-huggare | L3: Såmaskin för gräs och snigelgift | M3: Skörde-vagnar | N3: Hand-redskap
C4: 50 kW 4WD | D4: 40 kW 2WD | E4: vagn, beg. traktorredskap | F4: 3-radig ny | G4: 3-radig bandspruta
A5: Ny/begagnad | C5: beg | D5: beg | E5: beg | F5: ny | G5: ny | H5: ny | I5: ny | J5: ny | K5: ny | L5: ny | M5: nya | N5: nya
A6: Odlingsareal | B6: ha | C6: =Omloppskalkyl!B28 -> 30 | D6: =Omloppskalkyl!$B$29 -> 10 | E6: =Omloppskalkyl!B28 -> 30 | F6: =Omloppskalkyl!$B$29 -> 10 | G6: =Omloppskalkyl!$B$29 -> 10 | H6: =Omloppskalkyl!$B$29 -> 10 | I6: =Omloppskalkyl!$B$29 -> 10 | J6: =Omloppskalkyl!$B$29 -> 10 | K6: =Omloppskalkyl!$B$29 -> 10 | L6: =Omloppskalkyl!$B$29 -> 10 | M6: =Omloppskalkyl!$B$29 -> 10 | N6: =Omloppskalkyl!$B$29 -> 10
A8: Årlig användningstid | B8: tim | C8: 300 | D8: 300 | E8: 60 | F8: 30 | G8: 30 | H8: 70 | I8: 50 | J8: 30 | K8: 10 | L8: 10 | M8: 6000 | N8: 200
A10: Inköpspris | B10: kr | C10: 300000 | D10: 100000 | E10: 300000 | F10: 140000 | G10: 100000 | H10: 100000 | I10: 85000 | J10: 150000 | K10: 30000 | L10: 35000 | M10: 24000 | N10: 20000
A11: Återstående livslängd | B11: år | C11: 8 | D11: 8 | E11: 8 | F11: 12 | G11: 12 | H11: 12 | I11: 12 | J11: 12 | K11: 12 | L11: 12 | M11: 6 | N11: 5
A12: Restvärde | B12: kr | C12: 100000 | D12: 50000 | E12: 50000 | F12: 28000 | G12: 20000 | H12: 10000 | I12: 5000 | J12: 15000 | K12: 5000 | L12: 10000 | M12: 0 | N12: 0
A13: Värdeminskning per år | B13: kr | C13: =(C10-C12)/C11 -> 25000 | D13: =(D10-D12)/D11 -> 6250 | E13: 31250 | F13: =(F10-F12)/F11 -> 9333.333333 | G13: 6666.666667 | H13: 7500 | I13: 6666.666667 | J13: 11250 | K13: 2083.333333 | L13: 2083.333333 | M13: 4000 | N13: 4000
A15: Räntesats | B15: % | C15: =Prislista!$B$19 -> 0.02 | D15: =Prislista!$B$19 -> 0.02 | E15: =Prislista!$B$19 -> 0.02 | F15: =Prislista!$B$19 -> 0.02 | G15: =Prislista!$B$19 -> 0.02 | H15: =Prislista!$B$19 -> 0.02 | I15: =Prislista!$B$19 -> 0.02 | J15: =Prislista!$B$19 -> 0.02 | K15: =Prislista!$B$19 -> 0.02 | L15: =Prislista!$B$19 -> 0.02 | M15: =Prislista!$B$19 -> 0.02 | N15: =Prislista!$B$19 -> 0.02
A16: Annuitetsfaktor | C16: =C15/(1-(1+C15)^-C11) -> 0.1365097991 | D16: =D15/(1-(1+D15)^-D11) -> 0.1365097991 | E16: 0.1365097991 | F16: =F15/(1-(1+F15)^-F11) -> 0.09455959662 | G16: 0.09455959662 | H16: 0.09455959662 | I16: =I15/(1-(1+I15)^-I11) -> 0.09455959662 | J16: =J15/(1-(1+J15)^-J11) -> 0.09455959662 | K16: =K15/(1-(1+K15)^-K11) -> 0.09455959662 | L16: =L15/(1-(1+L15)^-L11) -> 0.09455959662 | M16: 0.1785258123 | N16: 0.2121583941
A17: Årskostnad | B17: kr | C17: =C16*(C10-(C12*(1+C15)^-C11)) -> 29301.95983 | D17: =D16*(D10-(D12*(1+D15)^-D11)) -> 7825.489957 | E17: 35127.44978 | F17: =F16*(F10-(F12*(1+F15)^-F11)) -> 11150.67482 | G17: 7964.76773 | H17: 8710.363696 | I17: =I16*(I10-(I12*(1+I15)^-I11)) -> 7664.76773 | J17: =J16*(J10-(J12*(1+J15)^-J11)) -> 13065.54554 | K17: =K16*(K10-(K12*(1+K15)^-K11)) -> 2463.989916 | L17: =L16*(L10-(L12*(1+L15)^-L11)) -> 2563.989916 | M17: 4284.619496 | N17: 4243.167882
A19: Nypris | B19: kr | C19: 470000 | D19: 230000 | E19: 600000 | F19: 40000 | G19: 100000 | H19: 100000 | I19: =I10 -> 85000 | J19: 20000 | K19: 30000 | L19: 35000 | M19: 24000 | N19: 20000
A20: Underhåll per 1000 kr nypris | B20: kr/tim | C20: 0.1 | D20: 0.1 | E20: 0.5 | F20: 1.5 | G20: 0.7 | H20: 1.5 | I20: 0.5 | J20: 0.5 | K20: 0.5 | L20: 0.5 | M20: 0 | N20: 0
A21: Underhållskostnad per år | B21: kr | C21: =C8*C19*C20/1000 -> 14100 | D21: =D8*D19*D20/1000 -> 6900 | E21: 18000 | F21: =F8*F19*F20/1000 -> 1800 | G21: 2100 | H21: 10500 | I21: =I8*I19*I20/1000 -> 2125 | J21: =J8*J19*J20/1000 -> 300 | K21: =K8*K19*K20/1000 -> 150 | L21: =L8*L19*L20/1000 -> 175 | M21: 0 | N21: 0
A23: Redskapskostnad
O24: S:a
A25: Kostnad per år | B25: kr | C25: =C17+C21 -> 43401.95983 | D25: =D17+D21 -> 14725.48996 | E25: =E17+E21 -> 53127.44978 | F25: =F17+F21 -> 12950.67482 | G25: 10064.76773 | H25: 19210.3637 | I25: =I17+I21 -> 9789.76773 | J25: =J17+J21 -> 13365.54554 | K25: =K17+K21 -> 2613.989916 | L25: =L17+L21 -> 2738.989916 | M25: 4284.619496 | N25: 4243.167882
A26: Kostnad per ha och år | B26: kr | C26: =C25/C6 -> 1446.731994 | D26: =D25/D6 -> 1472.548996 | E26: 1770.914993 | F26: =F25/F6 -> 1295.067482 | G26: 1006.476773 | H26: 1921.03637 | I26: =I25/I6 -> 978.976773 | J26: =J25/J6 -> 1336.554554 | K26: =K25/K6 -> 261.3989916 | L26: =L25/L6 -> 273.8989916 | M26: 428.4619496 | N26: 424.3167882 | O26: =SUM(C26:N26) -> 12616.38466

Sheet Bevattningsutrustning
A1: Kostnader för bevattningsmaskiner
C4: Bevattnings-maskin med ramp
A6: Odlingsareal | B6: ha | C6: =Omloppskalkyl!B29 -> 10
A8: Inköpspris | B8: kr | C8: 590000
A9: Återstående livslängd | B9: år | C9: 12
A10: Restvärde | B10: kr | C10: 50000
A11: Värdeminskning per år | B11: kr | C11: =(C8-C10)/C9 -> 45000
A13: Räntesats | B13: % | C13: =Prislista!B19 -> 0.02
A14: Annuitetsfaktor | C14: =C13/(1-(1+C13)^-C9) -> 0.09455959662
A15: Årskostnad | B15: kr | C15: =C14*(C8-(C10*(1+C13)^-C9)) -> 52062.18218
A17: Underhåll per år | B17: % | C17: 0.05
A18: Underhållskostnad per år | B18: kr | C18: =C17*C8 -> 29500
A20: Kostnad per år | B20: kr | C20: =C15+C18 -> 81562.18218
A21: Kostnad per ha och år | B21: kr | C21: =C20/C6 -> 8156.218218

Sheet Byggnader
A1: Kostnader för byggnader
C3: Maskinhall oisolerad plåthall | D3: Inredning av personalutrymme i befintlig byggnad | E3: Kyl i befintlig lokal | F3: Två inhyrda bajamajor
C4: 12 x 18 m | E4: 30 m² | F4: 8 månadshyror
A6: Areal som betjänas | B6: ha | C6: =Omloppskalkyl!B28 -> 30 | D6: =Omloppskalkyl!B29 -> 10 | E6: =Omloppskalkyl!B29 -> 10 | F6: =Omloppskalkyl!B29 -> 10
A8: Plåthall | C8: 540000
A9: Uppsättning | C9: 165000
A10: Markarbete | C10: 120000
A11: Elinstallation | C11: 100000
A13: Investering | B13: kr | C13: =SUM(C8:C11) -> 925000 | D13: 400000 | E13: 150000
A15: Avskrivningstid | B15: år | C15: 20 | D15: 15 | E15: 10
A16: Värdeminskning per år | B16: kr | C16: =C13/C15 -> 46250 | D16: =D13/D15 -> 26666.66667 | E16: =E13/E15 -> 15000
A17: Räntesats | B17: % | C17: =Prislista!$B$19 -> 0.02 | D17: =Prislista!$B$19 -> 0.02 | E17: =Prislista!$B$19 -> 0.02
A18: Annuitetsfaktor | C18: =C17/(1-(1+C17)^-C15) -> 0.06115671813 | D18: 0.102962764 | E18: 0.1358679582
A19: Årskostnad | B19: kr | C19: =C18*C13 -> 56569.96427 | D19: =D18*D13 -> 41185.10558 | E19: =E18*E13 -> 20380.19373
A20: Underhåll | B20: % | C20: 0.01 | D20: 0.02 | E20: 0.05
A21: Underhåll | B21: kr | C21: =C20*C13 -> 9250 | D21: =D20*D13 -> 8000 | E21: =E13*E20 -> 7500
G22: S:a
A23: Totalkostnad per år | B23: kr | C23: =C19+C21 -> 65819.96427 | D23: =D19+D21 -> 49185.10558 | E23: =E19+E21 -> 27880.19373 | F23: 35200
A24: Årskostnad per ha | B24: kr | C24: =C23/C6 -> 2193.998809 | D24: =D23/D6 -> 4918.510558 | E24: =E23/E6 -> 2788.019373 | F24: =F23/F6 -> 3520 | G24: =SUM(C24:F24) -> 13420.52874

Sheet Prislista
A1: Priser på insatsmaterial i jordgubbsodling 2020
A3: Fasta kostnader och stöd
A4: Arrende/jordränta | B4: 5000 | C4: kr/ha
A5: Certifiering | B5: 5000 | C5: kr/ha
A6: Administration och företagsledning | B6: 200000 | C6: kr/ha
A7: Miljöersättning | B7: 7500 | C7: kr/ha
A8: Gårdsstöd | B8: 2000 | C8: kr/ha
A10: Arbete
A11: Kvalificerat arbete | B11: 283 | C11: kr/tim
A12: Okvalificerat arbete | B12: 186 | C12: kr/tim
A13: Plockningsackord | B13: 4 | C13: kr/l
A14: Sociala kostnader plockning | B14: 0.365
A16: Räntor
A17: Kalkylränta, nuvärdeberäkning | B17: 0.02
A18: Ränta byggnader | B18: 0.02
A19: Ränta inventarier och maskiner | B19: 0.02
A20: Ränta rörelsekapital | B20: 0.02
A22: Drivmedel och energi
A23: Driv- och smörjmedel traktor | B23: 88 | C23: kr/tim | E23: Maskinkostnader 2019, 50 KW traktor
A24: El | B24: 0.96 | C24: kr/KWh | E24: AgriWise: 0,96 kr/kWh.
A26: Material mm
A27: Plantor, A+ | B27: 2.15 | C27: kr/st | E27: Thilda, Olssons
A28: Gräsfröblandning | B28: 40 | C28: kr/kg | E28: 50% ängsgröe och 50% rödsvingel. Utsädesmängd 20 kg räknat bara sådd i gång
A29: Plastfolie, svart nedbrytbar 35 my | B29: 3.3 | C29: kr/m² | E29: Nedbrytbar
A30: Fiberduk, 19 g/m² | B30: 1.1 | C30: kr/m² | E30: 0,90 kr/m2 + säckar 0,20 kr/m2
A31: Halm | B31: 1 | C31: kr/kg | E31: 0,40 öre i sträng på marken + 0.20 kr pressning + transport
A32: Analyser (köpt tjänst) | B32: 500 | C32: kr/st
A33: Jordgubbskatonger, 1 l | B33: 0.5 | C33: kr/st
A34: Engångslådor (för 15 kartonger) | B34: 9 | C34: kr/st | E34: Thilda
A35: Transport | C35: kr/l | E35: Säljs fritt odlingen
A36: Försäljningskostnad | B36: 0.03
A38: Gödselmedel
A39: Fastgödsel, nöt | B39: 0.2 | C39: kr/kg
A40: Pelleterad ekogödsel | B40: 4.7 | C40: kr/kg
A41: Vinass | B41: 1.75 | C41: kr/kg
A42: Kaliumsulfat | B42: 7.5 | C42: kr/kg | E42: SW horto 2020
A43: Kalimagnesia 25-6 | B43: 4.56 | C43: kr/kg
A45: Växtskydd
A46: Kumulus DF (Svavelpreparat) | B46: 160 | C46: kr/kg
A47: Serenade ASO (Bacillus subtilis) | B47: 154 | C47: kr/l
A48: Sluxx HP mot sniglar | B48: 69 | C48: kr/kg
A49: Rovkvalster Neoseiulus cucmeris | B49: 325 | C49: kr/300 000
A50: Humlor | B50: 500 | C50: kr/samhälle
A52: Trampnät (skrivs av på 5 år)
A53: Pris: 12500 m2/ha à2,70 kr/m2 | B53: 33750 | C53: kr/ha
A54: Avskrivningstid | B54: 5 | C54: år
A55: Räntesats | B55: =B17 -> 0.02
A56: Årskostnad | B56: =B53*B55/(1-(1+B55)^-B54) -> 7160.345801 | C56: kr/ha/år
